[Event "Titled Tuesday Blitz September 13 Early 2022"]
[White "Kamsky, Gata"]
[Black "Pultinevicius, Paulius"]
[WhiteFideId "2000024"]
[BlackFideId "12809390"]
[WhiteElo "2666"]
[BlackElo "2472"]
[Result "1-0"]
[Round "06"]
[TimeControl "180+1"]
[Date "2022.09.13"]
[WhiteClock "0:01:46"]
[BlackClock "0:01:36"]

1. e4 {[%clk 0:03:00]}  c6 {[%clk 0:03:00]} 2. Nf3 {[%clk 0:02:53]}  d5 {[%clk 0:03:00]} 3. d3 {[%clk 0:02:53]}  Nf6 {[%clk 0:03:00]} 4. e5 {[%clk 0:02:50]}  Nfd7 {[%clk 0:03:00]} 5. d4 {[%clk 0:02:46]}  e6 {[%clk 0:03:00]} 6. c3 {[%clk 0:02:36]}  c5 {[%clk 0:03:01]} 7. a3 {[%clk 0:02:30]}  b6 {[%clk 0:03:01]} 8. b4 {[%clk 0:02:29]}  Ba6 {[%clk 0:03:01]} 9. b5 {[%clk 0:02:29]}  Bb7 {[%clk 0:03:02]} 10. a4 {[%clk 0:02:25]}  Be7 {[%clk 0:03:01]} 11. Nbd2 {[%clk 0:02:18]}  Nf8 {[%clk 0:03:01]} 12. Bd3 {[%clk 0:02:17]}  Nbd7 {[%clk 0:03:01]} 13. O-O {[%clk 0:02:15]}  Ng6 {[%clk 0:03:02]} 14. Re1 {[%clk 0:02:14]}  Qc7 {[%clk 0:03:00]} 15. Nf1 {[%clk 0:02:13]}  c4 {[%clk 0:02:49]} 16. Bc2 {[%clk 0:02:13]}  a6 {[%clk 0:02:49]} 17. Rb1 {[%clk 0:02:12]}  axb5 {[%clk 0:02:45]} 18. axb5 {[%clk 0:02:10]}  Ra2 {[%clk 0:02:41]} 19. Ng3 {[%clk 0:02:09]}  O-O {[%clk 0:02:35]} 20. Nh5 {[%clk 0:02:08]}  Rfa8 {[%clk 0:02:34]} 21. g3 {[%clk 0:01:57]}  Ndf8 {[%clk 0:02:33]} 22. h4 {[%clk 0:01:56]}  R8a5 {[%clk 0:02:32]} 23. Nh2 {[%clk 0:01:50]}  Bc8 {[%clk 0:02:27]} 24. Ng4 {[%clk 0:01:49]}  Bd7 {[%clk 0:02:20]} 25. Qd2 {[%clk 0:01:49]}  Bxb5 {[%clk 0:02:01]} 26. Ngf6+ {[%clk 0:01:48]}  Kh8 {[%clk 0:01:44]} 27. Nxg7 {[%clk 0:01:47]}  Kxg7 {[%clk 0:01:35]} 28. Qh6+ {[%clk 0:01:46]}  Kh8 {[%clk 0:01:36]} 29. Nh5 {[%clk 0:01:46]} 1-0


[Site "https://www.chess.com"]

[Event "Titled Tuesday Blitz September 13 Early 2022"]
[White "Klinova, Masha"]
[Black "Bykhovsky, Anatoly"]
[WhiteFideId "2802015"]
[BlackFideId "2806991"]
[WhiteElo "2274"]
[BlackElo "2540"]
[Result "0-1"]
[Round "06"]
[TimeControl "180+1"]
[Date "2022.09.13"]
[WhiteClock "0:00:20"]
[BlackClock "0:00:30"]

1. Nf3 {[%clk 0:02:57]}  Nf6 {[%clk 0:02:59]} 2. g3 {[%clk 0:02:57]}  g6 {[%clk 0:02:58]} 3. Bg2 {[%clk 0:02:57]}  Bg7 {[%clk 0:02:59]} 4. O-O {[%clk 0:02:57]}  O-O {[%clk 0:03:00]} 5. c4 {[%clk 0:02:55]}  c6 {[%clk 0:02:59]} 6. d4 {[%clk 0:02:53]}  d5 {[%clk 0:03:00]} 7. cxd5 {[%clk 0:02:52]}  cxd5 {[%clk 0:03:00]} 8. Ne5 {[%clk 0:02:53]}  e6 {[%clk 0:02:56]} 9. Nc3 {[%clk 0:02:52]}  Nfd7 {[%clk 0:02:55]} 10. f4 {[%clk 0:02:34]}  Nc6 {[%clk 0:02:53]} 11. Be3 {[%clk 0:02:33]}  f6 {[%clk 0:02:50]} 12. Nf3 {[%clk 0:02:26]}  Nb6 {[%clk 0:02:48]} 13. b3 {[%clk 0:02:25]}  Bd7 {[%clk 0:02:47]} 14. Qd2 {[%clk 0:02:24]}  Rc8 {[%clk 0:02:45]} 15. Rac1 {[%clk 0:02:23]}  Rf7 {[%clk 0:02:44]} 16. Rfd1 {[%clk 0:02:21]}  Bf8 {[%clk 0:02:44]} 17. Nb1 {[%clk 0:02:17]}  Be8 {[%clk 0:02:41]} 18. Qb2 {[%clk 0:02:11]}  Rfc7 {[%clk 0:02:40]} 19. Ne1 {[%clk 0:02:04]}  Ne7 {[%clk 0:02:30]} 20. Nd3 {[%clk 0:02:01]}  Bb5 {[%clk 0:02:25]} 21. Nc5 {[%clk 0:01:57]}  Qd6 {[%clk 0:02:20]} 22. Nc3 {[%clk 0:01:55]}  Be8 {[%clk 0:02:18]} 23. Bf2 {[%clk 0:01:54]}  f5 {[%clk 0:02:13]} 24. e3 {[%clk 0:01:49]}  a6 {[%clk 0:02:12]} 25. Bf1 {[%clk 0:01:47]}  Kh8 {[%clk 0:02:10]} 26. Rc2 {[%clk 0:01:47]}  Nd7 {[%clk 0:02:09]} 27. b4 {[%clk 0:01:45]}  Nb6 {[%clk 0:02:07]} 28. Nb1 {[%clk 0:01:43]}  Ba4 {[%clk 0:02:04]} 29. Rdc1 {[%clk 0:01:33]}  Bxc2 {[%clk 0:02:03]} 30. Rxc2 {[%clk 0:01:33]}  Kg8 {[%clk 0:02:03]} 31. Nc3 {[%clk 0:01:31]}  Nc4 {[%clk 0:02:00]} 32. Qb3 {[%clk 0:01:30]}  b5 {[%clk 0:01:56]} 33. a4 {[%clk 0:01:28]}  Qb6 {[%clk 0:01:51]} 34. a5 {[%clk 0:01:24]}  Qd6 {[%clk 0:01:50]} 35. Na2 {[%clk 0:01:23]}  Kf7 {[%clk 0:01:48]} 36. Nc1 {[%clk 0:01:22]}  Ng8 {[%clk 0:01:45]} 37. N1d3 {[%clk 0:01:23]}  Nf6 {[%clk 0:01:45]} 38. Ne5+ {[%clk 0:01:22]}  Kg8 {[%clk 0:01:44]} 39. Bg2 {[%clk 0:01:19]}  Ne4 {[%clk 0:01:41]} 40. Bxe4 {[%clk 0:01:18]}  fxe4 {[%clk 0:01:42]} 41. Qc3 {[%clk 0:01:15]}  Nxe5 {[%clk 0:01:36]} 42. fxe5 {[%clk 0:01:14]}  Qd8 {[%clk 0:01:28]} 43. g4 {[%clk 0:01:15]}  Bxc5 {[%clk 0:01:22]} 44. dxc5 {[%clk 0:01:08]}  Qg5 {[%clk 0:01:23]} 45. h3 {[%clk 0:01:07]}  h5 {[%clk 0:01:23]} 46. Be1 {[%clk 0:01:05]}  hxg4 {[%clk 0:01:21]} 47. Rg2 {[%clk 0:01:06]}  Rf8 {[%clk 0:01:17]} 48. Rxg4 {[%clk 0:01:04]}  Qf5 {[%clk 0:01:17]} 49. Qd2 {[%clk 0:01:02]}  Rcf7 {[%clk 0:01:06]} 50. Kh2 {[%clk 0:00:53]}  Kh7 {[%clk 0:00:59]} 51. Bg3 {[%clk 0:00:49]}  g5 {[%clk 0:00:48]} 52. Qg2 {[%clk 0:00:47]}  Rg8 {[%clk 0:00:45]} 53. Bf4 {[%clk 0:00:45]}  Rfg7 {[%clk 0:00:45]} 54. Bg3 {[%clk 0:00:43]}  Rg6 {[%clk 0:00:42]} 55. Kg1 {[%clk 0:00:35]}  Rf8 {[%clk 0:00:40]} 56. Kh2 {[%clk 0:00:30]}  Rf7 {[%clk 0:00:35]} 57. Kg1 {[%clk 0:00:28]}  Qf3 {[%clk 0:00:35]} 58. Qd2 {[%clk 0:00:26]}  Rh6 {[%clk 0:00:30]} 59. Rxg5 {[%clk 0:00:20]}  Qf1+ {[%clk 0:00:30]} 0-1


[Site "https://www.chess.com"]

[Event "Titled Tuesday Blitz September 13 Early 2022"]
[White "Kosteniuk, Alexandra"]
[Black "Van Foreest, Jorden"]
[WhiteFideId "4128125"]
[BlackFideId "1039784"]
[WhiteElo "2469"]
[BlackElo "2649"]
[Result "0-1"]
[Round "06"]
[TimeControl "180+1"]
[Date "2022.09.13"]
[WhiteClock "0:00:10"]
[BlackClock "0:00:22"]

1. e4 {[%clk 0:03:00]}  g6 {[%clk 0:03:00]} 2. d4 {[%clk 0:03:00]}  Bg7 {[%clk 0:03:01]} 3. Nc3 {[%clk 0:03:01]}  d6 {[%clk 0:03:01]} 4. Be3 {[%clk 0:02:59]}  a6 {[%clk 0:03:00]} 5. a4 {[%clk 0:02:58]}  Nf6 {[%clk 0:02:57]} 6. Nf3 {[%clk 0:02:55]}  O-O {[%clk 0:02:56]} 7. Bd3 {[%clk 0:02:53]}  Nc6 {[%clk 0:02:57]} 8. h3 {[%clk 0:02:52]}  e5 {[%clk 0:02:56]} 9. d5 {[%clk 0:02:49]}  Ne7 {[%clk 0:02:52]} 10. a5 {[%clk 0:02:22]}  Kh8 {[%clk 0:02:40]} 11. g4 {[%clk 0:02:19]}  c6 {[%clk 0:02:37]} 12. Bb6 {[%clk 0:02:18]}  Qe8 {[%clk 0:02:37]} 13. Bc4 {[%clk 0:01:52]}  cxd5 {[%clk 0:02:30]} 14. exd5 {[%clk 0:01:52]}  Nd7 {[%clk 0:02:29]} 15. Ne4 {[%clk 0:01:50]}  Nxb6 {[%clk 0:02:28]} 16. axb6 {[%clk 0:01:50]}  Qd8 {[%clk 0:02:24]} 17. c3 {[%clk 0:01:15]}  Qxb6 {[%clk 0:02:21]} 18. Qd2 {[%clk 0:01:13]}  Qc7 {[%clk 0:02:17]} 19. Bb3 {[%clk 0:01:11]}  b5 {[%clk 0:02:18]} 20. Nfg5 {[%clk 0:00:58]}  h6 {[%clk 0:02:13]} 21. Nf3 {[%clk 0:00:50]}  f5 {[%clk 0:02:08]} 22. gxf5 {[%clk 0:00:46]}  gxf5 {[%clk 0:02:09]} 23. Ng3 {[%clk 0:00:44]}  f4 {[%clk 0:01:45]} 24. Nh5 {[%clk 0:00:44]}  Bf5 {[%clk 0:01:41]} 25. Nxg7 {[%clk 0:00:44]}  Kxg7 {[%clk 0:01:41]} 26. Nh4 {[%clk 0:00:41]}  Bd7 {[%clk 0:01:37]} 27. O-O-O {[%clk 0:00:35]}  Rg8 {[%clk 0:01:33]} 28. Qe2 {[%clk 0:00:31]}  Nf5 {[%clk 0:00:57]} 29. Rhg1+ {[%clk 0:00:30]}  Kf6 {[%clk 0:00:27]} 30. Qh5 {[%clk 0:00:25]}  Raf8 {[%clk 0:00:23]} 31. Bc2 {[%clk 0:00:20]}  Nxh4 {[%clk 0:00:17]} 32. Qxh4+ {[%clk 0:00:18]}  Kf7 {[%clk 0:00:18]} 33. Qxh6 {[%clk 0:00:18]}  Ke7 {[%clk 0:00:19]} 34. Rg7+ {[%clk 0:00:17]}  Rxg7 {[%clk 0:00:19]} 35. Qxg7+ {[%clk 0:00:17]}  Rf7 {[%clk 0:00:20]} 36. Qg5+ {[%clk 0:00:18]}  Rf6 {[%clk 0:00:20]} 37. Rg1 {[%clk 0:00:15]}  Be8 {[%clk 0:00:20]} 38. Qg7+ {[%clk 0:00:13]}  Bf7 {[%clk 0:00:20]} 39. h4 {[%clk 0:00:12]}  Qc5 {[%clk 0:00:20]} 40. h5 {[%clk 0:00:11]}  Qxf2 {[%clk 0:00:19]} 41. Qg5 {[%clk 0:00:09]}  f3 {[%clk 0:00:16]} 42. h6 {[%clk 0:00:09]}  Qh2 {[%clk 0:00:16]} 43. Rf1 {[%clk 0:00:04]}  Qxh6 {[%clk 0:00:15]} 44. Qxh6 {[%clk 0:00:05]}  Rxh6 {[%clk 0:00:16]} 45. Rxf3 {[%clk 0:00:05]}  Bxd5 {[%clk 0:00:16]} 46. Rf2 {[%clk 0:00:06]}  Rh1+ {[%clk 0:00:15]} 47. Kd2 {[%clk 0:00:06]}  Rg1 {[%clk 0:00:16]} 48. Bd1 {[%clk 0:00:05]}  Rg2 {[%clk 0:00:16]} 49. Rxg2 {[%clk 0:00:05]}  Bxg2 {[%clk 0:00:17]} 50. Ke3 {[%clk 0:00:06]}  Bb7 {[%clk 0:00:16]} 51. Be2 {[%clk 0:00:06]}  d5 {[%clk 0:00:17]} 52. Bd3 {[%clk 0:00:05]}  Kd6 {[%clk 0:00:17]} 53. Be2 {[%clk 0:00:06]}  Bc6 {[%clk 0:00:17]} 54. b4 {[%clk 0:00:07]}  Bd7 {[%clk 0:00:17]} 55. Bd3 {[%clk 0:00:07]}  Be6 {[%clk 0:00:17]} 56. Be2 {[%clk 0:00:07]}  Kc6 {[%clk 0:00:18]} 57. Bd3 {[%clk 0:00:08]}  Kb6 {[%clk 0:00:18]} 58. Be2 {[%clk 0:00:08]}  a5 {[%clk 0:00:19]} 59. bxa5+ {[%clk 0:00:08]}  Kxa5 {[%clk 0:00:20]} 60. Bd3 {[%clk 0:00:08]}  Kb6 {[%clk 0:00:20]} 61. Be2 {[%clk 0:00:09]}  Kc5 {[%clk 0:00:21]} 62. Bd3 {[%clk 0:00:09]}  b4 {[%clk 0:00:21]} 63. cxb4+ {[%clk 0:00:09]}  Kxb4 {[%clk 0:00:21]} 64. Be2 {[%clk 0:00:10]}  Kc3 {[%clk 0:00:22]} 0-1


[Site "https://www.chess.com"]

[Event "Titled Tuesday Blitz September 13 Early 2022"]
[White "Movahed, Sina"]
[Black "Vogel, Roven"]
[WhiteFideId "42520835"]
[BlackFideId "12908088"]
[WhiteElo "2117"]
[BlackElo "2501"]
[Result "1-0"]
[Round "06"]
[TimeControl "180+1"]
[Date "2022.09.13"]
[WhiteClock "0:00:21"]
[BlackClock "0:00:11"]

1. e4 {[%clk 0:03:00]}  e5 {[%clk 0:02:58]} 2. Nf3 {[%clk 0:03:01]}  Nc6 {[%clk 0:02:56]} 3. Bb5 {[%clk 0:03:01]}  a6 {[%clk 0:02:56]} 4. Ba4 {[%clk 0:03:01]}  Nf6 {[%clk 0:02:56]} 5. O-O {[%clk 0:03:01]}  Be7 {[%clk 0:02:57]} 6. d3 {[%clk 0:02:59]}  b5 {[%clk 0:02:57]} 7. Bb3 {[%clk 0:03:00]}  d6 {[%clk 0:02:58]} 8. a4 {[%clk 0:02:55]}  Bd7 {[%clk 0:02:57]} 9. Nc3 {[%clk 0:02:52]}  Na5 {[%clk 0:02:52]} 10. Ba2 {[%clk 0:02:50]}  b4 {[%clk 0:02:48]} 11. Nd5 {[%clk 0:02:51]}  b3 {[%clk 0:02:37]} 12. cxb3 {[%clk 0:02:40]}  Nc6 {[%clk 0:02:26]} 13. Bd2 {[%clk 0:02:36]}  Rb8 {[%clk 0:02:25]} 14. Qe1 {[%clk 0:01:59]}  O-O {[%clk 0:02:18]} 15. b4 {[%clk 0:01:59]}  Bg4 {[%clk 0:02:16]} 16. Rc1 {[%clk 0:01:53]}  Nxd5 {[%clk 0:01:55]} 17. Bxd5 {[%clk 0:01:52]}  Nd4 {[%clk 0:01:41]} 18. Nxd4 {[%clk 0:01:52]}  exd4 {[%clk 0:01:42]} 19. f4 {[%clk 0:01:42]}  Bd7 {[%clk 0:01:41]} 20. b5 {[%clk 0:01:32]}  axb5 {[%clk 0:01:39]} 21. a5 {[%clk 0:01:33]}  c6 {[%clk 0:01:36]} 22. Bxc6 {[%clk 0:01:31]}  Bxc6 {[%clk 0:01:27]} 23. Rxc6 {[%clk 0:01:32]}  Qd7 {[%clk 0:01:27]} 24. Rc1 {[%clk 0:01:22]}  d5 {[%clk 0:01:25]} 25. e5 {[%clk 0:01:16]}  Qf5 {[%clk 0:01:22]} 26. Qe2 {[%clk 0:01:15]}  h5 {[%clk 0:01:19]} 27. Rc7 {[%clk 0:01:15]}  Rfe8 {[%clk 0:01:12]} 28. b4 {[%clk 0:01:10]}  Rbc8 {[%clk 0:01:11]} 29. Rfc1 {[%clk 0:01:08]}  Rxc7 {[%clk 0:01:01]} 30. Rxc7 {[%clk 0:01:09]}  g5 {[%clk 0:00:54]} 31. a6 {[%clk 0:00:49]}  gxf4 {[%clk 0:00:52]} 32. a7 {[%clk 0:00:49]}  Bf8 {[%clk 0:00:50]} 33. Qf3 {[%clk 0:00:45]}  Qxe5 {[%clk 0:00:45]} 34. Qxf4 {[%clk 0:00:42]}  Qe6 {[%clk 0:00:40]} 35. Rb7 {[%clk 0:00:31]}  Bd6 {[%clk 0:00:16]} 36. Qg5+ {[%clk 0:00:29]}  Kf8 {[%clk 0:00:17]} 37. Qh6+ {[%clk 0:00:28]}  Qxh6 {[%clk 0:00:15]} 38. Bxh6+ {[%clk 0:00:29]}  Kg8 {[%clk 0:00:16]} 39. Kf2 {[%clk 0:00:22]}  h4 {[%clk 0:00:14]} 40. Kf3 {[%clk 0:00:20]}  Bxh2 {[%clk 0:00:13]} 41. Bf4 {[%clk 0:00:20]}  Bxf4 {[%clk 0:00:11]} 42. Kxf4 {[%clk 0:00:21]} 1-0


[Site "https://www.chess.com"]

[Event "Titled Tuesday Blitz September 13 Early 2022"]
[White "Oparin, Grigoriy"]
[Black "Makarian, Rudik"]
[WhiteFideId "24125890"]
[BlackFideId "44105681"]
[WhiteElo "2639"]
[BlackElo "2410"]
[Result "1-0"]
[Round "06"]
[TimeControl "180+1"]
[Date "2022.09.13"]
[WhiteClock "0:00:34"]
[BlackClock "0:00:06"]

1. c4 {[%clk 0:03:00]}  e6 {[%clk 0:02:59]} 2. Nc3 {[%clk 0:03:01]}  d5 {[%clk 0:02:59]} 3. d4 {[%clk 0:03:01]}  Nf6 {[%clk 0:02:59]} 4. cxd5 {[%clk 0:03:01]}  exd5 {[%clk 0:03:00]} 5. Bg5 {[%clk 0:03:01]}  c6 {[%clk 0:03:00]} 6. Qc2 {[%clk 0:03:00]}  Bd6 {[%clk 0:03:00]} 7. e3 {[%clk 0:02:58]}  h6 {[%clk 0:03:00]} 8. Bh4 {[%clk 0:02:58]}  O-O {[%clk 0:02:58]} 9. Bd3 {[%clk 0:02:58]}  Re8 {[%clk 0:02:58]} 10. Nge2 {[%clk 0:02:58]}  Nbd7 {[%clk 0:02:48]} 11. O-O-O {[%clk 0:02:52]}  b5 {[%clk 0:02:46]} 12. g4 {[%clk 0:02:52]}  b4 {[%clk 0:02:44]} 13. Na4 {[%clk 0:02:52]}  Qa5 {[%clk 0:02:40]} 14. Qxc6 {[%clk 0:02:20]}  Bb7 {[%clk 0:02:23]} 15. Qxb7 {[%clk 0:02:00]}  Qxa4 {[%clk 0:02:21]} 16. Kb1 {[%clk 0:02:00]}  Rab8 {[%clk 0:02:16]} 17. Qa6 {[%clk 0:02:00]}  Qxa6 {[%clk 0:02:16]} 18. Bxa6 {[%clk 0:02:01]}  Nxg4 {[%clk 0:02:16]} 19. h3 {[%clk 0:01:49]}  Ngf6 {[%clk 0:02:17]} 20. Bxf6 {[%clk 0:01:36]}  Nxf6 {[%clk 0:02:17]} 21. Bd3 {[%clk 0:01:37]}  Ne4 {[%clk 0:02:12]} 22. Bxe4 {[%clk 0:01:36]}  Rxe4 {[%clk 0:02:13]} 23. Nc1 {[%clk 0:01:35]}  g5 {[%clk 0:02:09]} 24. Nd3 {[%clk 0:01:34]}  Rc8 {[%clk 0:02:09]} 25. Rc1 {[%clk 0:01:31]}  Rxc1+ {[%clk 0:02:09]} 26. Kxc1 {[%clk 0:01:32]}  Rh4 {[%clk 0:02:04]} 27. Kd2 {[%clk 0:01:23]}  f5 {[%clk 0:01:57]} 28. f3 {[%clk 0:01:12]}  Kf7 {[%clk 0:01:41]} 29. Ke2 {[%clk 0:00:59]}  Ke6 {[%clk 0:01:29]} 30. Kf2 {[%clk 0:00:59]}  g4 {[%clk 0:01:25]} 31. Kg2 {[%clk 0:00:55]}  h5 {[%clk 0:01:05]} 32. hxg4 {[%clk 0:00:55]}  Rxh1 {[%clk 0:01:04]} 33. gxf5+ {[%clk 0:00:55]}  Kxf5 {[%clk 0:01:02]} 34. Kxh1 {[%clk 0:00:56]}  a5 {[%clk 0:00:59]} 35. Kg2 {[%clk 0:00:54]}  h4 {[%clk 0:00:51]} 36. Kh3 {[%clk 0:00:51]}  Bg3 {[%clk 0:00:52]} 37. b3 {[%clk 0:00:50]}  Kg5 {[%clk 0:00:47]} 38. e4 {[%clk 0:00:51]}  dxe4 {[%clk 0:00:43]} 39. fxe4 {[%clk 0:00:52]}  Kh5 {[%clk 0:00:37]} 40. d5 {[%clk 0:00:48]}  Kg5 {[%clk 0:00:38]} 41. Nc5 {[%clk 0:00:39]}  Kf6 {[%clk 0:00:17]} 42. Nb7 {[%clk 0:00:39]}  Ke5 {[%clk 0:00:17]} 43. Kg4 {[%clk 0:00:34]}  Kxe4 {[%clk 0:00:12]} 44. d6 {[%clk 0:00:35]}  Kd3 {[%clk 0:00:12]} 45. d7 {[%clk 0:00:35]}  Bc7 {[%clk 0:00:11]} 46. d8=Q+ {[%clk 0:00:32]}  Bxd8 {[%clk 0:00:11]} 47. Nxd8 {[%clk 0:00:33]}  Kc3 {[%clk 0:00:06]} 48. Nc6 {[%clk 0:00:33]}  Kb2 {[%clk 0:00:06]} 49. Nxa5 {[%clk 0:00:33]}  Kxa2 {[%clk 0:00:06]} 50. Kxh4 {[%clk 0:00:34]} 1-0


[Site "https://www.chess.com"]

[Event "Titled Tuesday Blitz September 13 Early 2022"]
[White "Pranav, V"]
[Black "Amin, Bassem"]
[WhiteFideId "25060783"]
[BlackFideId "10601457"]
[WhiteElo "2390"]
[BlackElo "2699"]
[Result "1-0"]
[Round "06"]
[TimeControl "180+1"]
[Date "2022.09.13"]
[WhiteClock "0:00:58"]
[BlackClock "0:00:05"]

1. Nf3 {[%clk 0:03:00]}  f5 {[%clk 0:02:56]} 2. d4 {[%clk 0:03:00]}  Nf6 {[%clk 0:02:55]} 3. Nc3 {[%clk 0:02:59]}  e6 {[%clk 0:02:54]} 4. Bg5 {[%clk 0:03:00]}  Bb4 {[%clk 0:02:54]} 5. e3 {[%clk 0:02:58]}  O-O {[%clk 0:02:52]} 6. Bd3 {[%clk 0:02:58]}  b6 {[%clk 0:02:50]} 7. O-O {[%clk 0:02:58]}  Bb7 {[%clk 0:02:50]} 8. Re1 {[%clk 0:02:55]}  Bxc3 {[%clk 0:02:38]} 9. bxc3 {[%clk 0:02:55]}  Qe8 {[%clk 0:02:16]} 10. Bxf6 {[%clk 0:02:53]}  Rxf6 {[%clk 0:02:16]} 11. e4 {[%clk 0:02:53]}  fxe4 {[%clk 0:02:13]} 12. Bxe4 {[%clk 0:02:54]}  Bxe4 {[%clk 0:02:13]} 13. Rxe4 {[%clk 0:02:55]}  Qg6 {[%clk 0:02:10]} 14. Qe2 {[%clk 0:02:52]}  Nc6 {[%clk 0:02:10]} 15. h3 {[%clk 0:02:38]}  Raf8 {[%clk 0:02:10]} 16. Rg4 {[%clk 0:02:38]}  Qf5 {[%clk 0:02:03]} 17. c4 {[%clk 0:02:34]}  h6 {[%clk 0:01:56]} 18. Rd1 {[%clk 0:02:28]}  d5 {[%clk 0:01:38]} 19. c3 {[%clk 0:02:28]}  Na5 {[%clk 0:01:32]} 20. cxd5 {[%clk 0:02:11]}  exd5 {[%clk 0:01:33]} 21. Re1 {[%clk 0:02:10]}  Nc4 {[%clk 0:01:31]} 22. Nh4 {[%clk 0:01:42]}  Qd7 {[%clk 0:00:44]} 23. Ng6 {[%clk 0:01:17]}  Rxf2 {[%clk 0:00:43]} 24. Qd3 {[%clk 0:01:17]}  R8f7 {[%clk 0:00:27]} 25. Ne5 {[%clk 0:01:12]}  Nxe5 {[%clk 0:00:26]} 26. dxe5 {[%clk 0:01:13]}  Qf5 {[%clk 0:00:14]} 27. Qxd5 {[%clk 0:01:13]}  h5 {[%clk 0:00:09]} 28. Rg3 {[%clk 0:01:05]}  Qf4 {[%clk 0:00:08]} 29. e6 {[%clk 0:00:58]}  Qxg3 {[%clk 0:00:05]} 30. exf7+ {[%clk 0:00:58]} 1-0


[Site "https://www.chess.com"]

[Event "Titled Tuesday Blitz September 13 Early 2022"]
[White "Samsonkin, Artiom"]
[Black "Prohaszka, Peter"]
[WhiteFideId "13503111"]
[BlackFideId "726265"]
[WhiteElo "2524"]
[BlackElo "2626"]
[Result "1-0"]
[Round "06"]
[TimeControl "180+1"]
[Date "2022.09.13"]
[WhiteClock "0:00:44"]
[BlackClock "0:00:10"]

1. e4 {[%clk 0:02:51]}  c6 {[%clk 0:02:50]} 2. d4 {[%clk 0:02:47]}  d5 {[%clk 0:02:51]} 3. e5 {[%clk 0:02:48]}  Bf5 {[%clk 0:02:50]} 4. h4 {[%clk 0:02:48]}  h5 {[%clk 0:02:45]} 5. Bd3 {[%clk 0:02:48]}  Bxd3 {[%clk 0:02:45]} 6. Qxd3 {[%clk 0:02:49]}  Qa5+ {[%clk 0:02:43]} 7. Nc3 {[%clk 0:02:49]}  e6 {[%clk 0:02:43]} 8. Bg5 {[%clk 0:02:49]}  Nh6 {[%clk 0:02:35]} 9. Nf3 {[%clk 0:02:47]}  Qa6 {[%clk 0:02:35]} 10. Qd2 {[%clk 0:02:46]}  Nf5 {[%clk 0:02:33]} 11. Ne2 {[%clk 0:02:47]}  c5 {[%clk 0:02:32]} 12. c3 {[%clk 0:02:47]}  Nc6 {[%clk 0:02:32]} 13. O-O {[%clk 0:02:48]}  cxd4 {[%clk 0:02:30]} 14. Nexd4 {[%clk 0:02:35]}  Nfxd4 {[%clk 0:02:13]} 15. cxd4 {[%clk 0:02:28]}  Bb4 {[%clk 0:02:10]} 16. Qd1 {[%clk 0:02:27]}  O-O {[%clk 0:01:28]} 17. a3 {[%clk 0:02:23]}  Be7 {[%clk 0:01:28]} 18. Rc1 {[%clk 0:02:23]}  Rfe8 {[%clk 0:01:18]} 19. Qd2 {[%clk 0:01:56]}  Rac8 {[%clk 0:01:14]} 20. Rc3 {[%clk 0:01:40]}  Bf8 {[%clk 0:00:43]} 21. Rfc1 {[%clk 0:01:30]}  Qb6 {[%clk 0:00:38]} 22. Bf6 {[%clk 0:01:13]}  a6 {[%clk 0:00:32]} 23. b4 {[%clk 0:01:04]}  Na7 {[%clk 0:00:32]} 24. Ng5 {[%clk 0:00:59]}  Rxc3 {[%clk 0:00:29]} 25. Rxc3 {[%clk 0:01:00]}  Rc8 {[%clk 0:00:20]} 26. Qc2 {[%clk 0:00:54]}  g6 {[%clk 0:00:15]} 27. Rxc8 {[%clk 0:00:53]}  Nxc8 {[%clk 0:00:16]} 28. Qxc8 {[%clk 0:00:53]}  Qxd4 {[%clk 0:00:10]} 29. Qxb7 {[%clk 0:00:44]} 1-0


[Site "https://www.chess.com"]

[Event "Titled Tuesday Blitz September 13 Early 2022"]
[White "Shimanov, Aleksandr"]
[Black "Sadhwani, Raunak"]
[WhiteFideId "4198603"]
[BlackFideId "35093487"]
[WhiteElo "2605"]
[BlackElo "2656"]
[Result "1-0"]
[Round "06"]
[TimeControl "180+1"]
[Date "2022.09.13"]
[WhiteClock "0:00:36"]
[BlackClock "0:00:03"]

1. e4 {[%clk 0:02:54]}  c6 {[%clk 0:02:59]} 2. d4 {[%clk 0:02:50]}  d5 {[%clk 0:03:00]} 3. Nc3 {[%clk 0:02:50]}  dxe4 {[%clk 0:03:00]} 4. Nge2 {[%clk 0:02:49]}  Nf6 {[%clk 0:03:01]} 5. Ng3 {[%clk 0:02:49]}  Bg4 {[%clk 0:02:30]} 6. Be2 {[%clk 0:02:49]}  Bxe2 {[%clk 0:02:30]} 7. Qxe2 {[%clk 0:02:50]}  e6 {[%clk 0:02:21]} 8. Ncxe4 {[%clk 0:02:43]}  Nbd7 {[%clk 0:02:14]} 9. Bf4 {[%clk 0:02:40]}  Qa5+ {[%clk 0:01:49]} 10. c3 {[%clk 0:02:39]}  Be7 {[%clk 0:01:41]} 11. O-O {[%clk 0:02:20]}  O-O {[%clk 0:01:41]} 12. Rfe1 {[%clk 0:02:16]}  Rfe8 {[%clk 0:01:40]} 13. Bd6 {[%clk 0:02:09]}  Rad8 {[%clk 0:01:16]} 14. b4 {[%clk 0:02:01]}  Qb6 {[%clk 0:00:42]} 15. a4 {[%clk 0:01:55]}  Nxe4 {[%clk 0:00:35]} 16. Nxe4 {[%clk 0:01:55]}  Nf8 {[%clk 0:00:34]} 17. Bg3 {[%clk 0:01:29]}  a6 {[%clk 0:00:25]} 18. Nc5 {[%clk 0:01:10]}  Qa7 {[%clk 0:00:25]} 19. h4 {[%clk 0:01:06]}  h6 {[%clk 0:00:22]} 20. Qg4 {[%clk 0:01:03]}  Nh7 {[%clk 0:00:19]} 21. a5 {[%clk 0:00:55]}  Nf6 {[%clk 0:00:19]} 22. Qf3 {[%clk 0:00:55]}  Nd5 {[%clk 0:00:18]} 23. Re4 {[%clk 0:00:52]}  Nf6 {[%clk 0:00:18]} 24. Re2 {[%clk 0:00:52]}  Qa8 {[%clk 0:00:18]} 25. Na4 {[%clk 0:00:50]}  Bd6 {[%clk 0:00:18]} 26. Be5 {[%clk 0:00:49]}  Nd5 {[%clk 0:00:17]} 27. Qg3 {[%clk 0:00:44]}  Bxe5 {[%clk 0:00:17]} 28. dxe5 {[%clk 0:00:45]}  Ne7 {[%clk 0:00:17]} 29. Nc5 {[%clk 0:00:44]}  Nf5 {[%clk 0:00:16]} 30. Qf4 {[%clk 0:00:44]}  Rd5 {[%clk 0:00:14]} 31. h5 {[%clk 0:00:44]}  Qb8 {[%clk 0:00:12]} 32. g4 {[%clk 0:00:44]}  Ne7 {[%clk 0:00:12]} 33. Rae1 {[%clk 0:00:44]}  b6 {[%clk 0:00:11]} 34. axb6 {[%clk 0:00:40]}  Qxb6 {[%clk 0:00:12]} 35. Re3 {[%clk 0:00:39]}  a5 {[%clk 0:00:12]} 36. Rf3 {[%clk 0:00:39]}  Rxc5 {[%clk 0:00:03]} 37. Qxf7+ {[%clk 0:00:37]}  Kh7 {[%clk 0:00:03]} 38. Qxe8 {[%clk 0:00:36]} 1-0


[Site "https://www.chess.com"]